bitfinex/quotes_BTCUSD_20250303
["timestamp","ask_amount","ask_price","bid_price","bid_amount"]
[1740996021261,0.000341,92150.0,92149.0,0.01339934]
[1740996021508,0.16436098,92150.0,92149.0,0.01339934]
[1740996021682,0.16436098,92150.0,92149.0,0.01439934]
[1740996021683,0.24226098,92150.0,92149.0,0.01439934]
[1740996021884,0.24226098,92150.0,92149.0,0.00112034]
[1740996022111,0.078241,92150.0,92149.0,0.00112034]
[1740996022311,0.000341,92150.0,92149.0,0.16289934]
[1740996022487,0.000341,92150.0,92149.0,0.00012034]
[1740996022687,0.163119,92150.0,92149.0,0.01440039]
[1740996022890,0.163119,92150.0,92149.0,0.00112034]
[1740996023090,0.000341,92150.0,92149.0,0.01440039]
[1740996023298,0.000341,92150.0,92149.0,0.00012034]
[1740996023502,0.163119,92150.0,92149.0,0.01340039]
[1740996023703,0.163119,92150.0,92149.0,0.00012034]
[1740996023899,0.000341,92150.0,92149.0,0.00012034]
[1740996024149,0.000341,92150.0,92149.0,0.17617939]
[1740996024302,0.000341,92150.0,92149.0,0.00012034]
[1740996024505,0.000341,92150.0,92149.0,0.01340039]
[1740996024706,0.000341,92150.0,92149.0,0.16389934]
[1740996024875,0.000341,92150.0,92149.0,0.17717939]
[1740996025359,0.000341,92150.0,92149.0,0.15217938]
[1740996025809,0.000341,92150.0,92149.0,0.01328005]
[1740996026019,0.000341,92150.0,92149.0,0.01728005]
[1740996026020,0.163119,92150.0,92149.0,0.01728005]
[1740996026164,0.000341,92150.0,92149.0,0.004]
[1740996026933,0.000341,92150.0,92149.0,0.0172814]
[1740996027144,0.000341,92150.0,92149.0,0.004]
[1740996027349,0.16436098,92150.0,92149.0,0.0172814]
[1740996027497,0.16436098,92150.0,92149.0,0.004]
[1740996028344,0.163119,92150.0,92149.0,0.004]
[1740996029616,0.000341,92150.0,92149.0,0.0172814]
[1740996030018,0.163119,92150.0,92149.0,0.0172814]
[1740996030677,0.163119,92150.0,92149.0,0.004]
[1740996030831,0.163119,92150.0,92149.0,0.0172814]
[1740996031238,0.163119,92150.0,92149.0,0.004]
[1740996031735,0.000341,92150.0,92149.0,0.004]
[1740996032381,0.000341,92150.0,92149.0,0.0172814]
[1740996032542,0.000341,92150.0,92149.0,0.004]
[1740996032746,0.000341,92150.0,92149.0,0.0172814]
[1740996032943,0.000341,92150.0,92149.0,0.166779]
[1740996033261,0.000341,92150.0,92149.0,0.1800604]
[1740996033974,0.000341,92150.0,92149.0,0.18157945]
[1740996035879,0.000341,92150.0,92149.0,0.60887946]
[1740996036010,0.000341,92150.0,92149.0,0.6073604]
[1740996037353,0.0003408,92181.0,92150.0,0.3]
[1740996037551,0.0003408,92181.0,92180.0,0.162725]
[1740996037910,0.0003408,92181.0,92180.0,0.47647319]
[1740996038113,0.0003408,92181.0,92180.0,0.47495462]
[1740996038312,0.0003408,92181.0,92180.0,0.17495462]
[1740996038536,0.0003408,92181.0,92180.0,0.17647318]
[1740996038736,0.0003408,92181.0,92180.0,0.18987157]
[1740996039138,0.0003408,92181.0,92180.0,0.20453288]
[1740996040098,8e-07,92181.0,92180.0,0.33153258]
[1740996040305,8e-07,92181.0,92180.0,0.33001415]
[1740996040619,8e-07,92181.0,92180.0,0.35031806]
[1740996040765,0.0010008,92181.0,92180.0,0.35731806]
[1740996042072,0.0010008,92181.0,92180.0,0.33701415]
[1740996043685,8e-07,92181.0,92180.0,0.33001415]
[1740996043890,8e-07,92181.0,92180.0,0.33701415]
[1740996045359,8e-07,92181.0,92180.0,0.28701432]
[1740996045568,8e-07,92181.0,92180.0,0.19547347]
[1740996046829,8e-07,92181.0,92180.0,0.18207508]
[1740996048166,8e-07,92181.0,92180.0,0.18359361]
[1740996048794,8e-07,92181.0,92180.0,0.18207508]
[1740996049595,8e-07,92181.0,92180.0,0.18359361]
[1740996050380,8e-07,92181.0,92180.0,0.48359361]
[1740996050675,8e-07,92181.0,92180.0,0.49661593]
[1740996053493,8e-07,92181.0,92180.0,0.57191593]
[1740996054216,8e-07,92181.0,92180.0,0.66941576]
[1740996054544,0.0003408,92202.0,92194.0,0.4627]
[1740996054853,0.0003408,92202.0,92194.0,0.55328085]
[1740996055018,0.0003408,92202.0,92194.0,0.56646956]
[1740996057248,0.0003408,92202.0,92194.0,0.57346956]
[1740996057406,0.0023504,92195.0,92194.0,0.59368451]
[1740996057607,0.0023504,92195.0,92194.0,0.57914366]
[1740996058229,0.0023504,92195.0,92194.0,0.11644366]
[1740996058632,0.0023504,92195.0,92194.0,0.02018871]
[1740996059195,0.0023504,92195.0,92194.0,0.01318871]
[1740996059435,0.0023504,92195.0,92190.0,0.162707]
[1740996059610,0.0023504,92195.0,92194.0,0.0131891]
[1740996059815,0.0023504,92195.0,92194.0,0.1627]
[1740996060008,0.0023504,92195.0,92194.0,0.1828891]
[1740996060532,0.0023504,92195.0,92194.0,0.1758891]
[1740996060709,0.0023504,92195.0,92194.0,0.1778891]
[1740996060913,0.0023504,92195.0,92194.0,0.17940739]
[1740996061295,0.0023504,92195.0,92194.0,0.0151891]
[1740996061497,0.0023504,92195.0,92194.0,0.1778891]
[1740996061898,0.0023504,92195.0,92194.0,0.47940733]
[1740996062096,0.0023504,92195.0,92194.0,0.4778891]
[1740996062767,0.0023504,92195.0,92194.0,0.4758891]
[1740996062972,0.0023504,92195.0,92194.0,0.4818891]
[1740996063469,0.0023504,92195.0,92194.0,0.1818891]
[1740996063876,0.0023504,92195.0,92194.0,0.18340738]
[1740996064088,0.0023504,92195.0,92194.0,0.1818891]
[1740996064296,0.0023504,92195.0,92194.0,0.18340735]
[1740996065501,0.0023504,92195.0,92194.0,0.17740735]
[1740996065703,0.0023504,92195.0,92194.0,0.18340735]
[1740996066068,0.0023504,92195.0,92194.0,0.19794821]
[1740996066265,0.0003408,92196.0,92195.0,0.04999983]
[1740996066566,0.0003006,92208.0,92207.0,0.462677]
[1740996066767,0.0003006,92208.0,92207.0,0.76735692]
[1740996067019,0.0003006,92208.0,92207.0,0.8282209]
[1740996067335,0.0003006,92208.0,92207.0,0.7805209]
[1740996068112,0.0003006,92208.0,92207.0,0.81536525]
[1740996070291,0.0003006,92208.0,92207.0,0.82236525]
[1740996070411,0.0003006,92208.0,92207.0,0.8078244]
[1740996070632,0.0003006,92208.0,92207.0,0.7317444]
[1740996071064,0.0003006,92208.0,92207.0,0.4317444]
[1740996071282,0.0003006,92208.0,92207.0,0.2690674]
[1740996071489,0.0003006,92208.0,92207.0,0.4317444]
[1740996072049,0.0003006,92208.0,92207.0,0.4114409]
[1740996072256,0.0003006,92208.0,92207.0,0.2487639]
[1740996072457,0.0003006,92208.0,92207.0,0.2417639]
[1740996072760,0.0003006,92208.0,92207.0,0.4114409]
[1740996073155,0.0003006,92208.0,92207.0,0.2487639]
[1740996073399,0.0003006,92208.0,92207.0,0.4044409]
[1740996073583,0.0003006,92208.0,92207.0,0.4114409]
[1740996077025,0.0003006,92208.0,92207.0,0.18284098]
[1740996077235,0.0003006,92208.0,92207.0,0.1843591]
[1740996077644,0.0003006,92208.0,92207.0,0.17584098]
[1740996078822,0.0003006,92208.0,92207.0,0.01316398]
[1740996079023,0.1629756,92208.0,92207.0,0.01316398]
[1740996079225,0.1629756,92208.0,92207.0,0.007]
[1740996079226,0.2431756,92208.0,92207.0,0.007]
[1740996079409,0.30326727,92208.0,92207.0,0.007]
[1740996079607,0.162707,92190.0,92184.0,0.22859992]
[1740996080061,0.162707,92190.0,92189.0,0.01081798]
[1740996080214,0.162707,92190.0,92189.0,0.0001702]
[1740996080556,0.25574842,92190.0,92189.0,0.0001702]
[1740996080768,0.30324842,92190.0,92189.0,0.0071702]
[1740996082248,0.31157047,92190.0,92189.0,0.0071702]
[1740996082978,0.31157047,92190.0,92189.0,0.0001702]
[1740996083129,0.31157047,92190.0,92189.0,0.0071702]
[1740996083560,0.31157047,92190.0,92189.0,0.0001702]
[1740996083950,0.31157047,92190.0,92189.0,0.0041702]
[1740996084356,0.61157047,92190.0,92189.0,0.0041702]
[1740996084638,0.62611132,92190.0,92189.0,0.0041702]
[1740996084852,0.542823,92181.0,92180.0,0.00029066]
[1740996084973,1.75148353,92181.0,92180.0,0.00029066]
[1740996085389,0.3,92180.0,92141.0,0.0015191]
[1740996085606,0.162767,92157.0,92149.0,0.162779]
[1740996085769,0.217006,92164.0,92150.0,0.162778]
[1740996085965,0.162763,92159.0,92150.0,0.01071712]
[1740996086188,0.162765,92157.0,92150.0,0.01071712]
[1740996086439,0.162764,92158.0,92145.0,0.217047]
[1740996086768,0.0228629,92190.0,92150.0,0.162776]
[1740996087049,0.3,92177.0,92150.0,0.163777]
[1740996087201,0.162766,92157.0,92150.0,0.163777]
[1740996087406,0.162772,92154.0,92151.0,0.01071548]
[1740996087723,0.216998,92167.0,92152.0,0.01071385]
[1740996087934,0.00124198,92166.0,92152.0,0.01071385]
[1740996088105,0.00124198,92166.0,92145.0,0.004]
[1740996088299,0.00124198,92166.0,92146.0,0.01072366]
[1740996088513,0.03569836,92190.0,92146.0,0.01072366]
[1740996088514,0.162783,92147.0,92146.0,0.01072366]
[1740996088746,0.162785,92146.0,92145.0,0.004]
[1740996088918,0.162781,92148.0,92145.0,0.004]
[1740996089121,0.0814,92150.0,92141.0,0.00012053]
[1740996089522,0.162792,92142.0,92141.0,0.00012053]
[1740996089801,0.1754702,92142.0,92141.0,0.00012053]
[1740996090033,0.17671218,92142.0,92141.0,0.00012053]
[1740996091015,0.17771218,92142.0,92141.0,0.00712053]
[1740996091372,0.16503398,92142.0,92141.0,0.00712053]
[1740996091605,0.00224198,92142.0,92141.0,0.00712053]
[1740996091759,0.16503398,92142.0,92141.0,0.00712053]
[1740996092213,0.16503398,92142.0,92141.0,0.00012053]
[1740996092416,0.16403398,92142.0,92141.0,0.00012053]
[1740996092573,0.16503398,92142.0,92141.0,0.00012053]
[1740996093057,0.00124198,92142.0,92141.0,0.00012053]
[1740996093281,0.00124198,92148.0,92141.0,0.00012053]
[1740996093482,0.01422059,92148.0,92141.0,0.00012053]
[1740996093738,0.162792,92142.0,92141.0,0.00012053]
[1740996094078,0.162781,92148.0,92141.0,0.00012053]
[1740996094231,0.06013793,92149.0,92142.0,0.162792]
[1740996094429,0.05889595,92149.0,92142.0,0.1735387]
[1740996094630,0.05889595,92149.0,92142.0,0.0107467]
[1740996094811,0.05889595,92149.0,92141.0,0.00012053]
[1740996094812,0.162785,92146.0,92141.0,0.00012053]
[1740996095011,0.162785,92146.0,92141.0,0.00029083]
[1740996095239,0.05889595,92149.0,92141.0,0.00029083]
[1740996095240,0.00124198,92145.0,92142.0,0.01074683]
[1740996095445,0.16279,92143.0,92142.0,0.01074683]
[1740996095643,0.238692,92142.0,92141.0,0.00029083]
[1740996096340,0.238692,92142.0,92141.0,0.00129083]
[1740996096851,0.238692,92142.0,92141.0,0.00029083]
[1740996097074,0.239692,92142.0,92141.0,0.00029083]
[1740996097298,0.24908171,92142.0,92141.0,0.01103979]
[1740996097500,0.24093398,92142.0,92141.0,0.00029083]
[1740996098353,0.23993398,92142.0,92141.0,0.00029083]
[1740996098605,0.54799513,92142.0,92141.0,0.00029083]
[1740996098790,0.54775315,92142.0,92141.0,0.00029083]
[1740996099199,0.54675315,92142.0,92141.0,0.00029083]
[1740996099579,0.54875315,92142.0,92141.0,0.00029083]
[1740996099978,0.54675315,92142.0,92141.0,0.00029083]
[1740996100371,0.08796115,92142.0,92120.0,4.97346113]
[1740996100573,0.00124198,92141.0,92120.0,4.97358167]
[1740996100890,0.162799,92139.0,92132.0,0.162808]
[1740996101129,0.004,92142.0,92135.0,0.162804]
[1740996101313,0.166792,92142.0,92133.0,0.01128118]
[1740996101505,0.004,92142.0,92136.0,0.01127627]
[1740996101704,0.004,92142.0,92137.0,0.01127463]
[1740996101908,0.162799,92139.0,92137.0,0.01127463]
[1740996102290,0.00524198,92142.0,92138.0,0.01127299]
[1740996102489,0.16402698,92146.0,92140.0,0.162794]
[1740996102720,0.2173836,92148.0,92127.0,0.217091]
[1740996102721,0.0003406,92148.0,92127.0,0.217091]
[1740996102933,0.0003406,92148.0,92141.0,0.01126671]
[1740996103122,0.0003406,92148.0,92147.0,0.162783]
[1740996103324,0.0003406,92148.0,92147.0,0.158783]
[1740996103496,0.0003406,92148.0,92147.0,0.01125689]
[1740996103849,0.162801,92137.0,92131.0,0.162811]
[1740996104018,0.162804,92135.0,92129.0,0.162814]
[1740996104197,0.00124198,92146.0,92121.0,0.01281461]
[1740996104398,0.21828798,92146.0,92127.0,0.162817]
[1740996104602,0.162808,92134.0,92128.0,0.162816]
[1740996104825,0.162809,92133.0,92126.0,0.162819]
[1740996105062,0.162807,92134.0,92127.0,0.162817]
[1740996105387,0.00124198,92139.0,92121.0,0.01299131]
[1740996105513,0.0003406,92148.0,92134.0,0.162805]
[1740996105514,0.00158258,92148.0,92134.0,0.162805]
[1740996105727,0.00158258,92148.0,92121.0,0.01314481]
[1740996105949,0.162797,92139.0,92132.0,0.162808]
[1740996106127,0.162797,92139.0,92133.0,0.162806]
[1740996106329,0.00124198,92140.0,92121.0,0.3]
[1740996106573,0.162797,92139.0,92133.0,0.162807]
[1740996106708,0.00124198,92140.0,92121.0,0.31299776]
[1740996106911,0.162797,92140.0,92133.0,0.162807]
[1740996107111,0.00124198,92141.0,92130.0,0.217082]
[1740996107354,0.162808,92134.0,92122.0,0.217103]
[1740996107559,0.162808,92134.0,92128.0,0.162816]
[1740996107914,0.217061,92140.0,92127.0,0.0001703]
[1740996108116,0.162799,92138.0,92132.0,0.162809]
[1740996108540,0.00124198,92137.0,92132.0,0.162809]
[1740996108762,0.162802,92136.0,92127.0,0.2172593]
[1740996108968,0.0003406,92148.0,92127.0,0.0001703]
[1740996109193,0.0003406,92148.0,92141.0,0.162793]
[1740996109376,0.162785,92146.0,92140.0,0.162795]
[1740996109598,0.00124198,92145.0,92132.0,0.003]
[1740996109800,0.217051,92144.0,92135.0,0.162803]
[1740996110116,0.00124198,92147.0,92127.0,0.0001703]
[1740996110365,0.16279,92143.0,92127.0,0.00168973]
[1740996110533,0.162795,92140.0,92134.0,0.162804]
[1740996110893,0.217058,92141.0,92129.0,0.162814]
[1740996111095,0.00124198,92146.0,92131.0,0.16281]
[1740996111299,0.162801,92137.0,92127.0,0.0001703]
[1740996111500,0.162801,92137.0,92129.0,0.217086]
[1740996111719,0.217063,92140.0,92129.0,0.217086]
[1740996111922,0.217063,92140.0,92127.0,0.0001703]
[1740996112126,0.217063,92140.0,92135.0,0.001]
[1740996112325,0.162801,92137.0,92135.0,0.001]
[1740996112531,0.00124198,92142.0,92127.0,0.0001703]
[1740996112532,0.162797,92140.0,92133.0,0.162806]
[1740996112743,0.00124198,92146.0,92133.0,0.217076]
[1740996112885,0.00124198,92146.0,92129.0,0.003]
[1740996113099,0.21828898,92146.0,92135.0,0.162804]
[1740996113318,0.162794,92141.0,92135.0,0.162804]
[1740996113718,0.217051,92144.0,92136.0,0.162801]
[1740996113919,0.162792,92142.0,92136.0,0.162801]
[1740996114216,0.162797,92139.0,92133.0,0.003]
[1740996114437,0.162795,92141.0,92133.0,0.003]
[1740996114642,0.162792,92142.0,92136.0,0.162802]
[1740996115004,0.21706,92140.0,92127.0,0.2172593]
[1740996115196,0.217065,92138.0,92135.0,0.002]
[1740996115458,0.162802,92136.0,92135.0,0.002]
[1740996115865,0.162816,92128.0,92127.0,0.0001703]
[1740996116069,0.162816,92128.0,92127.0,0.0031703]
[1740996116684,0.162816,92128.0,92127.0,0.0001703]
[1740996118456,0.17596739,92128.0,92127.0,0.0001703]
[1740996119100,0.17596739,92128.0,92127.0,0.0021703]
[1740996120708,0.47596739,92128.0,92127.0,0.0021703]
[1740996120907,0.72522468,92128.0,92127.0,0.0021703]
[1740996121422,0.61630824,92128.0,92127.0,0.0021703]
[1740996121813,0.67526583,92128.0,92127.0,0.0021703]
[1740996124195,0.462829,92121.0,92120.0,4.55220397]
[1740996124412,0.98096985,92121.0,92120.0,4.24366651]
[1740996124616,1.13988629,92121.0,92120.0,4.11223206]
[1740996124821,1.17129701,92121.0,92120.0,3.86877979]
[1740996125104,1.17129701,92121.0,92120.0,3.6606455]
[1740996125413,1.17129701,92121.0,92120.0,3.01835634]
[1740996125555,1.18776985,92121.0,92120.0,2.67892634]
[1740996125879,1.13926985,92121.0,92120.0,2.46366691]
[1740996126089,1.84426985,92121.0,92120.0,2.46466691]
[1740996126491,1.83926985,92121.0,92120.0,2.43097748]
[1740996126815,1.84426985,92121.0,92120.0,2.43197748]
[1740996126950,1.84426985,92121.0,92120.0,2.39928805]
[1740996127355,1.84426985,92121.0,92120.0,2.36659862]
[1740996127558,1.14426985,92121.0,92120.0,2.36659862]
[1740996127975,1.14426985,92121.0,92120.0,2.33390919]
[1740996128513,1.14426985,92121.0,92120.0,2.30121976]
[1740996128914,1.14426985,92121.0,92120.0,2.26853033]
[1740996129325,1.04426985,92121.0,92120.0,2.26853033]
[1740996129463,1.09426985,92121.0,92120.0,2.2358409]
[1740996129664,1.04426985,92121.0,92120.0,2.2358409]
[1740996129963,0.729729,92121.0,92120.0,2.2358409]
[1740996130170,0.806529,92121.0,92120.0,2.2358409]
[1740996130419,1.106529,92121.0,92120.0,2.2088409]
[1740996131640,1.106529,92121.0,92120.0,1.73774847]
[1740996131641,1.21606985,92121.0,92120.0,1.73774847]
[1740996131846,1.22306985,92121.0,92120.0,1.45370286]
[1740996132287,1.22306985,92121.0,92120.0,1.42101244]
[1740996132691,1.21606985,92121.0,92120.0,1.38832202]
[1740996132890,1.22306985,92121.0,92120.0,1.38832202]
[1740996133328,1.22306985,92121.0,92120.0,1.3556316]
[1740996133526,1.21606985,92121.0,92120.0,1.3556316]
[1740996133866,1.21606985,92121.0,92120.0,1.32294118]
[1740996134229,1.21606985,92121.0,92120.0,1.29025076]
[1740996134433,1.22739718,92121.0,92120.0,1.29025076]
[1740996134830,1.22306985,92121.0,92120.0,1.25756034]
[1740996135390,1.22306985,92121.0,92120.0,1.19786992]
[1740996135611,1.28869207,92121.0,92120.0,0.6458054]
[1740996135810,1.29569207,92121.0,92120.0,0.33480898]
[1740996136213,1.29569207,92121.0,92120.0,0.26612852]
[1740996136438,1.28869207,92121.0,92120.0,0.1710581]
[1740996136574,0.539271,92097.0,92071.0,0.0475]
[1740996136771,2.09177256,92097.0,92071.0,0.0475]
[1740996139060,2.09877256,92097.0,92071.0,0.0475]
[1740996140026,2.15687633,92097.0,92071.0,0.0475]
[1740996140376,0.462915,92072.0,92071.0,0.045587]
[1740996142130,0.47566471,92072.0,92071.0,0.045587]
[1740996142346,0.462935,92061.0,92060.0,0.002]
[1740996142538,1.54939553,92061.0,92060.0,0.002]
[1740996143157,0.462935,92061.0,92060.0,0.002]
[1740996143551,1.54939553,92061.0,92060.0,0.002]
[1740996143710,1.54951564,92061.0,92060.0,0.002]
[1740996144129,0.46305511,92061.0,92060.0,0.002]
[1740996144495,0.46305511,92061.0,92060.0,0.0774]
[1740996144496,0.30012011,92061.0,92060.0,0.0774]
[1740996145028,0.30212011,92061.0,92060.0,0.0774]
[1740996145471,0.00212011,92061.0,92060.0,0.213337]
[1740996145634,0.00212011,92061.0,92060.0,0.261837]
[1740996146044,0.00212011,92061.0,92060.0,0.0989]
[1740996146268,0.00012011,92061.0,92060.0,0.0989]
[1740996146672,0.00212011,92061.0,92060.0,0.0989]
[1740996148201,0.00012011,92061.0,92060.0,0.0989]
[1740996148403,0.00112011,92061.0,92060.0,0.0989]
[1740996149387,0.00112011,92061.0,92060.0,0.0485]
[1740996149671,0.00112011,92061.0,92060.0,0.0486703]
[1740996151315,0.00112011,92061.0,92060.0,0.2116073]
[1740996152574,0.00112011,92061.0,92060.0,0.2880073]
[1740996152801,0.07784,92097.0,92076.0,0.0758]
[1740996153087,0.00124198,92086.0,92076.0,0.0758]
[1740996153257,0.0113217,92083.0,92076.0,0.0758]
[1740996153603,0.0113217,92083.0,92082.0,0.162898]
[1740996153814,0.0113217,92083.0,92082.0,0.294298]
[1740996154058,0.09702064,92105.0,92104.0,0.162859]
[1740996154300,0.09702064,92105.0,92104.0,0.0486]
[1740996154513,0.3,92109.0,92104.0,0.0486]
[1740996154879,0.162856,92106.0,92104.0,0.0476]
[1740996155035,0.01454085,92106.0,92104.0,0.0476]
[1740996155360,0.01466139,92106.0,92104.0,0.0416]
[1740996155515,0.01654085,92105.0,92104.0,0.0416]
[1740996155908,0.01454085,92105.0,92104.0,0.0416]
[1740996156508,0.00312054,92106.0,92105.0,0.162857]
[1740996157669,0.00012054,92106.0,92105.0,0.162857]
[1740996158026,0.09702064,92110.0,92105.0,0.00151993]
[1740996158226,0.09702064,92110.0,92109.0,0.24215]
[1740996158438,0.00124198,92140.0,92111.0,0.217128]
[1740996158439,0.3,92139.0,92111.0,0.217128]
[1740996158645,0.3,92132.0,92115.0,0.162839]
[1740996158838,0.00124198,92131.0,92115.0,0.162839]
[1740996159038,0.01454085,92130.0,92109.0,0.1248]
[1740996159305,0.217099,92124.0,92109.0,0.1238]
[1740996159472,0.162834,92118.0,92109.0,0.1238]
[1740996159669,0.00124198,92117.0,92109.0,0.1238]
[1740996159878,0.00124198,92119.0,92109.0,0.1238]
[1740996160074,0.00124198,92119.0,92110.0,0.217131]
[1740996160258,0.01454085,92135.0,92111.0,0.00151985]
[1740996160459,0.00124198,92131.0,92111.0,0.00151985]
[1740996160770,0.30124198,92131.0,92113.0,0.162843]
[1740996160969,0.3,92131.0,92115.0,0.004]
[1740996161341,0.217094,92126.0,92115.0,0.004]
[1740996161499,0.3,92131.0,92109.0,0.1238]
[1740996161500,0.217104,92122.0,92109.0,0.1238]
[1740996161754,0.00158258,92121.0,92109.0,0.1238]
[1740996161913,0.00158258,92121.0,92105.0,0.00040073]
[1740996161914,0.162855,92106.0,92105.0,0.00040073]
[1740996162122,0.00158258,92121.0,92105.0,0.00040073]
[1740996162123,0.162852,92108.0,92105.0,0.00040073]
[1740996162324,0.0003406,92121.0,92105.0,0.00040073]
[1740996162325,0.00124198,92107.0,92105.0,0.00040073]
[1740996162491,0.00124198,92117.0,92105.0,0.00040073]
[1740996162694,0.0003408,92110.0,92105.0,0.00040073]
[1740996162896,0.00158278,92110.0,92105.0,0.00040073]
[1740996163809,0.0003408,92110.0,92105.0,0.00040073]
[1740996164228,0.001,92107.0,92106.0,0.01115933]
[1740996164877,0.0003408,92110.0,92106.0,0.01115933]
[1740996165873,0.00158278,92110.0,92105.0,0.00040073]
[1740996166455,0.001,92107.0,92106.0,0.006]
[1740996166999,0.001,92107.0,92106.0,0.01715874]
[1740996167197,0.001,92107.0,92106.0,0.18001374]
[1740996167705,0.001,92107.0,92106.0,0.01715874]
[1740996167940,0.001,92107.0,92106.0,0.18001374]
[1740996168158,0.0003408,92110.0,92109.0,0.16285]
[1740996168598,0.0003408,92110.0,92109.0,0.17400383]
[1740996169300,0.0003408,92110.0,92109.0,0.17800383]
[1740996169473,0.0003408,92110.0,92109.0,0.22640383]
[1740996169690,0.0003408,92110.0,92109.0,0.30380383]
[1740996169844,0.0003408,92110.0,92109.0,0.31631193]
[1740996170042,0.0023506,92148.0,92120.0,0.162831]
[1740996170043,0.01067484,92148.0,92120.0,0.162831]
[1740996170291,0.00158258,92147.0,92120.0,0.162831]
[1740996170471,0.00158258,92147.0,92120.0,0.29898457]
[1740996170665,0.0003406,92147.0,92120.0,0.29746515]
[1740996170873,0.00158258,92147.0,92120.0,0.29746515]
[1740996171107,0.0003406,92147.0,92120.0,0.29746515]
[1740996171511,0.0003406,92147.0,92146.0,0.162785]
[1740996171756,0.0003406,92147.0,92145.0,0.0458]
[1740996171956,0.0003406,92147.0,92146.0,0.17387572]
[1740996172126,0.0003406,92147.0,92146.0,0.162785]
[1740996172303,0.0003406,92147.0,92146.0,0.17287572]
[1740996172706,0.00046111,92147.0,92146.0,0.17287572]
[1740996174896,0.00146111,92147.0,92146.0,0.18039493]
[1740996175085,0.00146111,92147.0,92146.0,0.25477572]
[1740996175284,0.00146111,92147.0,92146.0,0.30117572]
[1740996175538,0.09702064,92175.0,92163.0,0.162755]
[1740996175716,0.09702064,92175.0,92163.0,0.285055]
[1740996175915,0.09702064,92175.0,92163.0,0.29610904]
[1740996177532,0.09702064,92175.0,92163.0,0.30310904]
[1740996178000,0.09702064,92175.0,92163.0,0.29610904]
[1740996178413,0.09702064,92175.0,92163.0,0.30310904]
[1740996179552,0.09702064,92175.0,92163.0,0.31575135]
[1740996179950,0.09702064,92175.0,92163.0,0.30310904]
[1740996180457,0.162715,92186.0,92163.0,0.30310904]
[1740996180684,0.00124198,92185.0,92163.0,0.30310904]
[1740996181700,0.00809997,92200.0,92163.0,0.14035404]
[1740996182032,0.218906,92210.0,92178.0,0.284828]
[1740996182033,0.00213047,92179.0,92178.0,0.284828]
[1740996182355,0.00213047,92179.0,92178.0,0.2958534]
[1740996183758,0.0003006,92208.0,92194.0,0.1627]
[1740996183964,0.0003006,92208.0,92194.0,0.2857]
[1740996185437,0.0003006,92208.0,92194.0,0.2927]
[1740996185987,0.0003006,92208.0,92194.0,0.30368408]
[1740996186348,0.0003006,92208.0,92194.0,0.31589111]
[1740996186554,0.0003006,92208.0,92194.0,0.60889111]
[1740996186753,0.0003006,92208.0,92198.0,0.462693]
[1740996186981,0.0003006,92208.0,92198.0,0.59606842]
[1740996187301,0.007,92206.0,92198.0,0.62484153]
[1740996187444,0.0003006,92208.0,92198.0,0.62484153]
[1740996187841,0.0003006,92208.0,92198.0,0.63084153]
[1740996188128,0.0003006,92208.0,92198.0,0.30206842]
[1740996188349,0.0003006,92208.0,92198.0,0.06307542]
[1740996188553,0.0013408,92199.0,92198.0,0.01797542]
[1740996188754,0.0013408,92199.0,92198.0,0.02497542]
[1740996188929,0.0013408,92199.0,92198.0,0.014]
[1740996189128,0.1640318,92199.0,92198.0,0.0249718]
[1740996189329,0.1640318,92199.0,92198.0,0.014]
[1740996189564,0.16527378,92199.0,92198.0,0.014]
[1740996189710,0.47757265,92199.0,92198.0,0.007]
[1740996189909,0.31454085,92198.0,92172.0,0.0487]
[1740996190111,0.3,92198.0,92173.0,0.00151876]
[1740996190463,0.00124198,92197.0,92185.0,0.216954]
[1740996190636,0.0003408,92199.0,92175.0,0.00151858]
[1740996190897,0.00158278,92199.0,92186.0,0.01099458]
[1740996191068,0.001,92198.0,92184.0,0.216956]
[1740996191229,0.003,92198.0,92187.0,0.01099295]
[1740996191430,0.0003408,92199.0,92179.0,0.00151858]
[1740996191635,0.0003408,92199.0,92180.0,0.08221842]
[1740996191962,0.0003408,92199.0,92198.0,0.162693]
[1740996192165,0.0003408,92199.0,92198.0,0.22276958]
[1740996192560,0.00351502,92199.0,92198.0,0.22428764]
[1740996193138,0.00351502,92199.0,92198.0,0.22276958]
[1740996193377,0.00351502,92199.0,92198.0,0.22428775]
[1740996193956,0.00351502,92199.0,92198.0,0.23650303]
[1740996194175,0.00451502,92199.0,92198.0,0.24350303]
[1740996194522,0.00451502,92199.0,92198.0,0.25050303]
[1740996194691,0.00451502,92199.0,92198.0,0.24898486]
[1740996195254,0.00451502,92199.0,92198.0,0.07407658]
[1740996195454,0.00451502,92199.0,92198.0,0.02497658]
[1740996196060,0.00451502,92199.0,92198.0,0.176693]
[1740996196290,0.00451502,92199.0,92198.0,0.02388725]
[1740996196497,0.00351502,92199.0,92198.0,0.01688725]
[1740996196876,0.00351502,92199.0,92198.0,0.02188725]
[1740996197115,0.00351502,92199.0,92198.0,0.01488725]
[1740996197321,0.18198885,92199.0,92198.0,0.02188725]
[1740996197466,0.48074687,92199.0,92198.0,0.012]
[1740996197896,0.48074687,92199.0,92198.0,0.005]
[1740996198430,0.55894687,92199.0,92198.0,0.012]
[1740996200157,0.48074687,92199.0,92198.0,0.005]
[1740996200366,0.31805587,92199.0,92198.0,0.007]
[1740996200505,0.31805587,92199.0,92172.0,0.00151872]
[1740996200704,0.00124198,92198.0,92191.0,0.162705]
[1740996200909,0.00124198,92198.0,92173.0,0.00993204]
[1740996201110,0.00124198,92198.0,92171.0,0.0494]
[1740996201111,0.00458278,92199.0,92192.0,0.00990097]
[1740996201336,0.0033408,92199.0,92182.0,0.216961]
[1740996201548,0.00458278,92199.0,92193.0,0.00989934]
[1740996201725,0.0003408,92199.0,92172.0,0.00151855]
[1740996201904,0.00124198,92198.0,92194.0,0.00989771]
[1740996202107,0.00124198,92198.0,92191.0,0.002]
[1740996202305,0.1630318,92199.0,92193.0,0.216934]
[1740996202306,0.0003408,92199.0,92193.0,0.216934]
[1740996202532,0.0003408,92199.0,92192.0,0.00989942]
[1740996202734,0.0003408,92199.0,92198.0,0.162693]
[1740996203117,0.0003408,92199.0,92198.0,0.17258266]
[1740996203338,0.0003408,92199.0,92198.0,0.00988966]
[1740996203934,0.0003408,92199.0,92197.0,0.162694]
[1740996204283,0.0003408,92199.0,92198.0,0.01388966]
[1740996204443,0.0003408,92199.0,92198.0,0.17658266]
[1740996204823,0.0003408,92199.0,92198.0,0.17258266]
[1740996205029,0.0003408,92199.0,92198.0,0.22018266]